[Event "European School-ch 2019"]
[Site "Mamaia"]
[Date "2019.06.04"]
[Round "5.5"]
[White "Farcadi, Hunor"]
[Black "Ozkurt, Kutay"]
[Result "1-0"]
[ECO "D00"]
[WhiteElo "2049"]
[BlackElo "1885"]
[Annotator "NA RC"]
[PlyCount "155"]
[EventDate "2019.05.31"]
[EventType "swiss"]
[EventCountry "ROU"]
[SourceTitle "playchess.com"]
[Source "ChessBase"]
[SourceQuality "1"]
[TimeControl "40/5400+30:1800+30"]

1. d4 {[%emt 0:00:00]} d5 {[%emt 0:00:00]} 2. Bf4 {[%emt 0:00:00]} Nf6 {[%emt 0:00:00]} 3. e3 {[%emt 0:00:03]} c5 4. c3 {[%emt 0:03:03]} Nc6 {[%emt 0:00:00]} 5. Nd2 {[%emt 0:00:26]} Bf5 {[%emt 0:00:00]} (5... Qb6 6. Qb3 Nh5 7. Qxb6 axb6 8. Bc7 cxd4 9. exd4 e5 10. Bxe5 Nxe5 11. dxe5 Bc5 12. g3 O-O {1-0 (76) Aronian,L (2765)-Caruana,F (2832) London 2018}) 6. Qb3 {[%emt 0:13:26] D00: 1 d4 d5: Unusual lines} Qd7 {[%emt 0:00:00]} 7. Ngf3 {[%emt 0:01:19]} c4 {[%emt 0:00:00]} 8. Qd1 {[%emt 0:02:00]} e6 {[%emt 0:00:25]} 9. Ne5 {[%emt 0:02:49]} Nxe5 {[%emt 0:01:49]} 10. dxe5 {[%emt 0:01:05]} Ne4 {[%emt 0:00:37]} 11. Nf3 $146 {[%emt 0:01:46]} ({Predecessor:} 11. Nxe4 Bxe4 12. f3 Bg6 {½-½ (46) Muschik,B (2277)-Zelcic,R (2513) Kirchweyhe 2018}) 11... Qb5 {[%emt 0:01:46]} 12. Qc1 {[%emt 0:02:13]} Be7 {[%emt 0:07:07]} 13. Nd4 {[%emt 0:01:29]} Qb6 {[%emt 0:00:09]} 14. Nxf5 {[%emt 0:08:26]} exf5 {[%emt 0:00:02]} 15. h4 {[%emt 0:03:18]} Qe6 {[%emt 0:04:45]} 16. Be2 {[%emt 0:06:18]} Nc5 {[%emt 0:00:35]} 17. Qd2 {[%emt 0:03:13]} Rd8 {[%emt 0:01:54]} 18. Rd1 {[%emt 0:02:11]} Qg6 {[%emt 0:11:36]} 19. Kf1 {[%emt 0:04:42]} Qe6 {[%emt 0:03:01]} 20. b4 {[%emt 0:13:03]} cxb3 {[%emt 0:02:14]} 21. axb3 {[%emt 0:02:03]} Nxb3 {[%emt 0:00:52]} 22. Bb5+ $11 {[%emt 0:01:51]} Kf8 {[%emt 0:00:03]} 23. Qa2 {[%emt 0:00:49]} a6 {[%emt 0:06:41]} 24. Qxb3 {[%emt 0:02:43]} axb5 {[%emt 0:00:02]} 25. Qxb5 {[%emt 0:00:10]} Qa6 {[%emt 0:00:19]} 26. Qxa6 {[%emt 0:00:22]} bxa6 {[%emt 0:00:01]} 27. Ra1 {[%emt 0:00:31]} Ra8 {[%emt 0:10:46]} 28. Ra5 {[%emt 0:05:44]} h5 {[%emt 0:02:06]} 29. Rxd5 {[%emt 0:01:29]} a5 {[%emt 0:01:27]} 30. Ke2 {[%emt 0:01:06]} a4 {[%emt 0:00:02]} 31. Bg5 {[%emt 0:05:07]} Bxg5 {[%emt 0:00:55]} 32. hxg5 {[%emt 0:00:05]} Ke7 {[%emt 0:00:12]} 33. Ra1 {[%emt 0:05:36]} a3 {[%emt 0:01:17]} 34. Rb5 {[%emt 0:04:08]} Ra4 {[%emt 0:01:23]} 35. f4 {[%emt 0:01:09]} Rha8 {[%emt 0:00:32]} 36. Ra2 {[%emt 0:00:25]} Ke6 {[%emt 0:00:29]} 37. Kd3 {[%emt 0:00:54]} g6 {[%emt 0:00:32]} 38. c4 {[%emt 0:01:05]} R8a7 {[%emt 0:02:35]} 39. Kc3 {[%emt 0:00:41]} Kd7 {[%emt 0:00:24]} 40. Rb6 {[%emt 0:00:00]} Rc7 {[%emt 0:00:00]} 41. Rb4 {[%emt 0:02:36]} Ra6 {[%emt 0:03:31]} 42. Kb3 {[%emt 0:00:23]} Rca7 {[%emt 0:00:12]} 43. Rd2+ {[%emt 0:11:18]} Ke6 {[%emt 0:00:37]} 44. Ka2 {[%emt 0:00:27]} Ke7 {[%emt 0:00:06]} 45. Rd3 {[%emt 0:00:25]} Ke6 {[%emt 0:00:17]} 46. c5 {[%emt 0:01:17]} Ke7 {[%emt 0:02:30]} 47. Rb6 {[%emt 0:00:57]} Ra5 {[%emt 0:00:29]} 48. c6 {[%emt 0:00:38]} Rc7 {[%emt 0:00:33]} 49. Rb7 {[%emt 0:01:54]} Ra7 {[%emt 0:00:17]} 50. Rxa7 {[%emt 0:02:25]} Rxa7 {[%emt 0:00:06]} 51. Rxa3 {[%emt 0:00:07]} Rc7 {[%emt 0:00:15]} 52. Rc3 {[%emt 0:00:05]} Ke6 {[%emt 0:00:03]} 53. Rc5 {[%emt 0:00:04]} Ke7 {[%emt 0:00:21]} 54. Kb3 {[%emt 0:00:06]} Kd8 {[%emt 0:00:04]} 55. Kc4 {[%emt 0:00:09]} Ra7 {[%emt 0:00:07]} 56. Rd5+ {[%emt 0:00:56]} Kc8 {[%emt 0:00:09]} 57. Rd7 {[%emt 0:00:14]} Rxd7 {[%emt 0:00:13]} 58. cxd7+ {[%emt 0:00:06]} Kxd7 {[%emt 0:00:02]} 59. Kc5 {[%emt 0:00:36]} h4 {[%emt 0:00:02]} 60. Kd5 {[%emt 0:01:04]} Ke7 {[%emt 0:00:09]} 61. e4 {[%emt 0:01:43]} fxe4 {[%emt 0:00:02]} 62. Kxe4 {[%emt 0:00:08]} Ke6 {[%emt 0:00:01]} 63. Ke3 {[%emt 0:05:29]} Kd5 {[%emt 0:00:15]} 64. Kd3 {[%emt 0:00:19]} Ke6 {[%emt 0:01:37]} 65. Ke4 {[%emt 0:00:05]} Ke7 {[%emt 0:00:12]} 66. Kf3 {[%emt 0:00:31]} h3 {[%emt 0:03:47]} 67. gxh3 {[%emt 0:00:05]} Kd7 {[%emt 0:00:04]} 68. Ke3 {[%emt 0:00:17]} Ke7 {[%emt 0:00:08]} 69. Ke4 {[%emt 0:00:10]} Kd7 {[%emt 0:00:37]} 70. f5 {[%emt 0:00:12]} Ke7 {[%emt 0:00:06]} 71. f6+ {[%emt 0:00:10]} Ke6 {[%emt 0:00:03]} 72. h4 {[%emt 0:00:05]} Kd7 {[%emt 0:00:31]} 73. Kd5 {[%emt 0:00:05]} Ke8 {[%emt 0:00:13]} 74. e6 {[%emt 0:00:14]} fxe6+ {[%emt 0:00:01]} 75. Kxe6 {[%emt 0:00:08]} Kf8 {[%emt 0:00:03]} 76. f7 {[%emt 0:00:10]} Kg7 {[%emt 0:00:05]} 77. Ke7 {[%emt 0:00:04]} Kh7 {[%emt 0:00:03]} 78. Kf6 {[%emt 0:00:10]} 1-0

[Event "European School-ch 2019"]
[Site "Mamaia"]
[Date "2019.06.04"]
[Round "5.6"]
[White "Sahin, Hayrun Nisa"]
[Black "Zemnitskiy, Alexander"]
[Result "0-1"]
[ECO "B40"]
[WhiteElo "1734"]
[BlackElo "2024"]
[Annotator "NA RC"]
[PlyCount "84"]
[EventDate "2019.05.31"]
[EventType "swiss"]
[EventCountry "ROU"]
[SourceTitle "playchess.com"]
[Source "ChessBase"]
[SourceQuality "1"]
[TimeControl "40/5400+30:1800+30"]

1. e4 {[%emt 0:00:00]} c5 {[%emt 0:00:19]} 2. Nf3 {[%emt 0:00:00]} e6 {[%emt 0:00:41]} 3. c3 {[%emt 0:00:00]} Nf6 {[%emt 0:00:54]} 4. e5 {[%emt 0:00:00]} Nd5 {[%emt 0:00:08]} 5. d4 {[%emt 0:00:33]} cxd4 {[%emt 0:00:05]} 6. cxd4 {[%emt 0:00:04]} d6 {[%emt 0:00:02]} 7. a3 {[%emt 0:00:12]} dxe5 {[%emt 0:02:05]} 8. dxe5 {[%emt 0:00:20]} Qa5+ {[%emt 0:00:09]} 9. Nbd2 {[%emt 0:07:08]} Nc6 {[%emt 0:00:23]} 10. g3 {[%emt 0:10:33]} Ndb4 {[%emt 0:05:28]} 11. Be2 {[%emt 0:01:07]} Na6 {[%emt 0:00:04]} 12. O-O {[%emt 0:03:32]} Nxe5 {[%emt 0:02:11]} 13. Nxe5 {[%emt 0:10:01]} Qxe5 {[%emt 0:00:15]} 14. Nc4 {[%emt 0:00:53]} Qd5 {[%emt 0:01:48]} 15. Bf4 {[%emt 0:03:02]} Nc5 {[%emt 0:01:59]} 16. Re1 {[%emt 0:08:51]} Qxd1 {[%emt 0:02:40]} 17. Raxd1 {[%emt 0:00:12]} Bd7 {[%emt 0:00:18]} 18. b4 {[%emt 0:04:36]} Na4 {[%emt 0:00:20]} 19. Na5 {[%emt 0:13:32]} Nc3 {[%emt 0:00:30]} 20. Bf3 {[%emt 0:02:38]} Nxd1 {[%emt 0:04:15]} 21. Rxd1 {[%emt 0:00:47]} Rc8 {[%emt 0:01:48]} 22. Bxb7 {[%emt 0:06:18]} Rc3 {[%emt 0:00:07]} 23. Be3 {[%emt 0:01:52]} Rxa3 {[%emt 0:01:24]} 24. Bc6 {[%emt 0:03:34]} Bxc6 {[%emt 0:05:10]} 25. Nxc6 {[%emt 0:00:05]} Be7 {[%emt 0:00:02]} 26. Bxa7 {[%emt 0:01:19]} Bf6 {[%emt 0:03:29]} 27. Bc5 {[%emt 0:12:27]} Ra1 {[%emt 0:00:24]} 28. Rxa1 {[%emt 0:01:03]} Bxa1 {[%emt 0:00:01]} 29. Kf1 {[%emt 0:00:12]} Kd7 {[%emt 0:00:10]} 30. Na5 {[%emt 0:00:06]} Rb8 {[%emt 0:00:43]} 31. Ke2 {[%emt 0:03:17]} Bc3 {[%emt 0:00:21]} 32. Nc4 {[%emt 0:00:03]} Bxb4 {[%emt 0:00:18]} 33. Ne5+ {[%emt 0:00:29]} Ke8 {[%emt 0:00:19]} 34. Be3 {[%emt 0:00:40]} Bd6 {[%emt 0:00:41]} 35. Nc4 {[%emt 0:00:21]} Ke7 {[%emt 0:00:51]} 36. Kd3 {[%emt 0:00:59]} h5 {[%emt 0:01:02]} 37. h3 {[%emt 0:00:23]} e5 {[%emt 0:00:31]} 38. Ke4 {[%emt 0:00:43]} Ke6 {[%emt 0:00:15]} 39. g4 {[%emt 0:02:02]} g6 {[%emt 0:01:05]} 40. gxh5 {[%emt 0:00:00]} f5+ {[%emt 0:00:00]} 41. Kd3 {[%emt 0:00:20]} gxh5 {[%emt 0:00:20]} 42. Nb6 {[%emt 0:00:32]} f4 {[%emt 0:00:23] Kd4} 0-1

[Event "European School-ch 2019"]
[Site "Mamaia"]
[Date "2019.06.04"]
[Round "5.7"]
[White "Tinarlioglu, Emre"]
[Black "Ognean, Mihnea-Ionut"]
[Result "0-1"]
[ECO "B07"]
[WhiteElo "1907"]
[BlackElo "2260"]
[Annotator "RC"]
[PlyCount "109"]
[EventDate "2019.05.31"]
[EventType "swiss"]
[EventCountry "ROU"]
[SourceTitle "playchess.com"]
[Source "ChessBase"]
[SourceQuality "1"]
[TimeControl "40/5400+30:1800+30"]

1. e4 {[%emt 0:00:00]} d6 {[%emt 0:00:00]} 2. d4 {[%emt 0:00:00]} Nf6 {[%emt 0:00:00]} 3. Nc3 {[%emt 0:00:00]} g6 {[%emt 0:00:00]} 4. Bg5 {[%emt 0:00:00]} Bg7 {[%emt 0:00:07]} 5. Qd2 {[%emt 0:00:07]} h6 {[%emt 0:00:13]} 6. Bh4 {[%emt 0:00:06]} O-O {[%emt 0:00:32]} 7. f4 {[%emt 0:00:22]} c6 {[%emt 0:00:26]} 8. Nf3 {[%emt 0:00:18]} b5 {[%emt 0:06:12]} 9. a3 {[%emt 0:03:29]} Nbd7 {[%emt 0:09:35]} 10. e5 {[%emt 0:06:56]} Ne8 {[%emt 0:00:38]} 11. Bd3 {[%emt 0:04:16]} Nb6 {[%emt 0:00:40]} 12. O-O {[%emt 0:07:54]} Be6 {[%emt 0:04:50]} 13. b3 {[%emt 0:05:02]} Nc7 {[%emt 0:02:07]} 14. Ne4 {[%emt 0:04:41]} f6 {[%emt 0:08:24]} 15. exf6 {[%emt 0:07:28]} exf6 {[%emt 0:00:13]} 16. Bf2 {[%emt 0:11:03]} f5 {[%emt 0:02:26]} 17. Nc3 {[%emt 0:00:30]} a5 {[%emt 0:02:17]} 18. a4 {[%emt 0:02:05]} b4 {[%emt 0:01:54]} 19. Ne2 {[%emt 0:00:03]} Nbd5 {[%emt 0:01:42]} 20. Kh1 {[%emt 0:06:04]} Qd7 {[%emt 0:00:59]} 21. Qd1 {[%emt 0:05:07]} Kh7 {[%emt 0:02:45]} 22. Nd2 {[%emt 0:00:23]} Nb6 {[%emt 0:07:52]} 23. Ng1 {[%emt 0:02:42]} Rfe8 {[%emt 0:03:35]} 24. Qf3 {[%emt 0:02:02]} Bd5 {[%emt 0:02:39]} 25. Qg3 {[%emt 0:00:25]} Bf6 {[%emt 0:04:54]} 26. Ngf3 {[%emt 0:00:44]} Ne6 {[%emt 0:00:41]} 27. Rae1 {[%emt 0:03:32]} Qg7 {[%emt 0:00:34]} 28. Rxe6 {[%emt 0:12:57]} Rxe6 {[%emt 0:02:07]} 29. Qh3 {[%emt 0:00:08]} Re7 {[%emt 0:04:48]} 30. Ne5 {[%emt 0:03:30]} Nd7 {[%emt 0:03:10]} 31. Nec4 {[%emt 0:01:53]} Bxd4 {[%emt 0:02:37]} 32. Nxd6 {[%emt 0:04:07]} Bxf2 {[%emt 0:01:04]} 33. Rxf2 {[%emt 0:00:18]} Nf6 {[%emt 0:04:37]} 34. Rf1 {[%emt 0:00:43]} Rd8 {[%emt 0:00:33]} 35. N6c4 {[%emt 0:00:10]} Ng4 {[%emt 0:01:17]} 36. Qg3 {[%emt 0:01:39]} Qd4 {[%emt 0:01:35]} 37. Nf3 {[%emt 0:02:02]} Qf6 {[%emt 0:05:26]} 38. Nfe5 {[%emt 0:02:12]} Nxe5 {[%emt 0:00:08]} 39. Nxe5 {[%emt 0:00:06]} Be4 {[%emt 0:01:29]} 40. Bxe4 {[%emt 0:00:00]} fxe4 {[%emt 0:00:00]} 41. Ng4 {[%emt 0:05:43]} Qg7 {[%emt 0:08:04]} 42. Ne5 {[%emt 0:06:41]} Rf8 {[%emt 0:07:35]} 43. Nxc6 {[%emt 0:04:20]} Ref7 {[%emt 0:00:13]} 44. h3 {[%emt 0:01:10]} Qc3 {[%emt 0:00:46]} 45. Qxc3 {[%emt 0:01:18]} bxc3 {[%emt 0:00:07]} 46. Re1 {[%emt 0:00:04]} Rxf4 {[%emt 0:00:17]} 47. Kg1 {[%emt 0:00:06]} Rf2 {[%emt 0:03:15]} 48. Nd4 {[%emt 0:01:07]} Rd2 {[%emt 0:00:41]} 49. Rxe4 {[%emt 0:01:31]} Rff2 {[%emt 0:00:06]} 50. g4 {[%emt 0:01:24]} Kg7 {[%emt 0:01:38]} 51. Nb5 {[%emt 0:03:53]} Rg2+ {[%emt 0:00:35]} 52. Kh1 {[%emt 0:02:06]} Rh2+ {[%emt 0:00:06]} 53. Kg1 {[%emt 0:00:02]} Rdg2+ {[%emt 0:00:05]} 54. Kf1 {[%emt 0:00:08]} Rxc2 55. Kg1 0-1

[Event "European School-ch 2019"]
[Site "Mamaia"]
[Date "2019.06.04"]
[Round "5.8"]
[White "Ceres, Dragos"]
[Black "Neshev, Nikola"]
[Result "0-1"]
[ECO "C50"]
[WhiteElo "2291"]
[BlackElo "1370"]
[Annotator "RC"]
[PlyCount "110"]
[EventDate "2019.05.31"]
[EventType "swiss"]
[EventCountry "ROU"]
[SourceTitle "playchess.com"]
[Source "ChessBase"]
[SourceQuality "1"]
[TimeControl "40/5400+30:1800+30"]

1. e4 {[%emt 0:00:00]} e5 {[%emt 0:06:50]} 2. Nf3 {[%emt 0:00:00]} Nc6 {[%emt 0:00:42]} 3. Bc4 {[%emt 0:00:00]} Nf6 {[%emt 0:00:15]} 4. d3 {[%emt 0:00:00]} Bc5 {[%emt 0:02:13]} 5. O-O {[%emt 0:00:08]} O-O {[%emt 0:00:12]} 6. Nbd2 {[%emt 0:00:38]} d6 {[%emt 0:08:18]} 7. c3 {[%emt 0:00:18]} a5 {[%emt 0:03:44]} 8. a4 Be6 9. h3 {[%emt 0:09:35]} Qd7 {[%emt 0:06:47]} 10. Bb5 {[%emt 0:04:50]} Qc8 {[%emt 0:35:10]} 11. Re1 {[%emt 0:03:52]} Bxh3 {[%emt 0:08:25]} 12. gxh3 {[%emt 0:00:09]} Qxh3 {[%emt 0:00:10]} 13. d4 {[%emt 0:01:28]} exd4 {[%emt 0:01:04]} 14. cxd4 {[%emt 0:00:57]} Nxd4 {[%emt 0:00:44]} 15. Nxd4 {[%emt 0:00:13]} Bxd4 {[%emt 0:00:06]} 16. Qf3 {[%emt 0:00:32]} Qh4 {[%emt 0:01:05]} 17. Kg2 {[%emt 0:12:44]} Ng4 {[%emt 0:05:06]} 18. Qg3 {[%emt 0:00:07]} Qxg3+ {[%emt 0:00:22]} 19. fxg3 {[%emt 0:00:07]} Ne3+ {[%emt 0:00:05]} 20. Rxe3 {[%emt 0:03:51]} Bxe3 {[%emt 0:00:07]} 21. Nf3 {[%emt 0:03:31]} Bxc1 {[%emt 0:00:12]} 22. Rxc1 {[%emt 0:00:05]} c6 {[%emt 0:00:07]} 23. Bd3 {[%emt 0:03:38]} Rfe8 {[%emt 0:01:52]} 24. Rh1 {[%emt 0:04:20]} h6 {[%emt 0:00:53]} 25. g4 {[%emt 0:01:02]} Rad8 {[%emt 0:05:00]} 26. Rh5 {[%emt 0:00:54]} b6 {[%emt 0:01:44]} 27. Nd4 {[%emt 0:01:12]} Rc8 {[%emt 0:01:53]} 28. Kf3 {[%emt 0:01:04]} Re5 {[%emt 0:00:41]} 29. Rh1 {[%emt 0:00:41]} d5 {[%emt 0:03:53]} 30. Kf4 {[%emt 0:02:52]} Re7 {[%emt 0:03:29]} 31. Rc1 {[%emt 0:03:27]} Rec7 {[%emt 0:01:07]} 32. Ba6 {[%emt 0:07:27]} Ra8 {[%emt 0:00:33]} 33. exd5 {[%emt 0:00:10]} Rxa6 {[%emt 0:00:39]} 34. dxc6 {[%emt 0:00:03]} Ra8 {[%emt 0:00:55]} 35. Nb5 {[%emt 0:00:02]} Re7 {[%emt 0:00:27]} 36. c7 {[%emt 0:11:22]} Rc8 {[%emt 0:00:08]} 37. b3 {[%emt 0:00:28]} Kh7 {[%emt 0:00:50]} 38. Rc6 {[%emt 0:00:26]} Re6 {[%emt 0:00:04]} 39. Rc1 {[%emt 0:05:24]} Re7 {[%emt 0:01:41]} 40. Rc6 {[%emt 0:00:00]} Kg8 {[%emt 0:00:00]} 41. Kf5 {[%emt 0:00:36]} Kf8 {[%emt 0:02:59]} 42. Rc1 {[%emt 0:01:30]} g6+ {[%emt 0:03:11]} 43. Kf4 {[%emt 0:00:16]} Ke8 {[%emt 0:00:33]} 44. Rc6 {[%emt 0:00:27]} Re6 {[%emt 0:01:03]} 45. Rc1 {[%emt 0:00:32]} Kd7 {[%emt 0:00:45]} 46. Rd1+ {[%emt 0:12:12]} Kc6 {[%emt 0:05:59]} 47. Nd4+ {[%emt 0:00:40]} Kxc7 {[%emt 0:00:10]} 48. Nxe6+ {[%emt 0:00:03]} fxe6 {[%emt 0:00:18]} 49. Ke5 {[%emt 0:00:02]} Rd8 {[%emt 0:03:37]} 50. Rc1+ {[%emt 0:01:02]} Kd7 {[%emt 0:00:09]} 51. Kf6 {[%emt 0:00:08]} Rf8+ {[%emt 0:06:02]} 52. Kxg6 {[%emt 0:03:38]} Rg8+ {[%emt 0:00:04]} 53. Kh5 {[%emt 0:00:50]} Rg5+ {[%emt 0:00:03]} 54. Kh4 {[%emt 0:00:26]} e5 {[%emt 0:00:25]} 55. Rh1 {[%emt 0:05:15]} Rg6 {[%emt 0:01:19]} 0-1

[Event "European School-ch 2019"]
[Site "Mamaia"]
[Date "2019.06.04"]
[Round "5.9"]
[White "Padurariu, Mihai-Edward"]
[Black "Kasaeva, Sofiia"]
[Result "1/2-1/2"]
[ECO "C28"]
[WhiteElo "2090"]
[BlackElo "1890"]
[Annotator "NA RC"]
[PlyCount "98"]
[EventDate "2019.05.31"]
[EventType "swiss"]
[EventCountry "ROU"]
[SourceTitle "playchess.com"]
[Source "ChessBase"]
[SourceQuality "1"]
[TimeControl "40/5400+30:1800+30"]

1. e4 {[%emt 0:00:00]} e5 {[%emt 0:00:00]} 2. Bc4 {[%emt 0:00:00]} Nf6 {[%emt 0:00:00]} 3. Nc3 {[%emt 0:00:00]} Nc6 {[%emt 0:01:01]} 4. d3 {[%emt 0:00:14]} Bb4 {[%emt 0:00:05]} 5. Nge2 {[%emt 0:05:08]} d5 {[%emt 0:00:19]} 6. exd5 {[%emt 0:00:07]} Nxd5 {[%emt 0:00:09]} 7. O-O {[%emt 0:01:45]} Nxc3 {[%emt 0:00:20]} 8. Nxc3 {[%emt 0:04:10]} O-O {[%emt 0:00:59]} 9. Be3 $146 {[%emt 0:09:16] C28: Vienna Game: 2...Nf6 3 Bc4 Nc6} ({Predecessor:} 9. f4 Na5 10. Bb3 Nxb3 11. axb3 exf4 12. Bxf4 Qd4+ 13. Kh1 Bxc3 14. bxc3 Qxc3 15. Ra4 b5 16. Re4 Qc6 {0-1 (62) Mitkov,N (2556)-Barcenilla,R (2503) ICC INT 2008}) 9... Na5 {[%emt 0:06:32]} 10. Bb3 {[%emt 0:01:09]} Nxb3 {[%emt 0:00:35]} 11. axb3 {[%emt 0:00:02]} a5 {[%emt 0:01:31]} 12. Kh1 {[%emt 0:08:00]} Bd6 {[%emt 0:04:45]} 13. Nb5 {[%emt 0:09:25]} Bd7 {[%emt 0:02:11]} 14. Nxd6 {[%emt 0:01:50]} cxd6 {[%emt 0:00:06]} 15. f4 {[%emt 0:03:51]} f5 {[%emt 0:01:11]} 16. Qd2 {[%emt 0:02:46]} Qc7 {[%emt 0:08:39]} 17. d4 {[%emt 0:10:55]} e4 {[%emt 0:02:45]} 18. d5 {[%emt 0:00:07]} Rfc8 {[%emt 0:01:23]} 19. Rfc1 {[%emt 0:05:13]} b5 {[%emt 0:02:45]} 20. c4 {[%emt 0:02:42]} Qd8 {[%emt 0:04:34]} 21. Bd4 {[%emt 0:03:08]} a4 {[%emt 0:02:38]} 22. bxa4 {[%emt 0:03:43]} bxc4 {[%emt 0:02:11]} 23. a5 {[%emt 0:00:41]} Bb5 {[%emt 0:02:05]} 24. Ra3 {[%emt 0:02:26]} Rcb8 {[%emt 0:03:27]} 25. Rg3 {[%emt 0:04:17]} Rb7 {[%emt 0:00:37]} 26. Bc3 {[%emt 0:00:38]} Rf7 {[%emt 0:04:11]} 27. Rh3 {[%emt 0:01:42]} Rc7 {[%emt 0:03:23]} 28. Qd1 {[%emt 0:03:54]} Be8 {[%emt 0:00:46]} 29. Qd4 {[%emt 0:01:33]} Bg6 {[%emt 0:03:33]} 30. Ra1 {[%emt 0:01:46]} Qd7 {[%emt 0:02:44]} 31. Re3 {[%emt 0:01:06]} Qb5 {[%emt 0:01:20]} 32. Ree1 {[%emt 0:01:21]} Qc5 {[%emt 0:04:35]} 33. Qd2 {[%emt 0:01:14]} Rd7 {[%emt 0:01:45]} 34. Rad1 {[%emt 0:06:04]} Bh5 {[%emt 0:00:59]} 35. Rc1 {[%emt 0:00:09]} Rb7 {[%emt 0:02:13]} 36. b4 {[%emt 0:00:52]} cxb3 {[%emt 0:04:06]} 37. Bxg7 {[%emt 0:00:06]} Qxa5 {[%emt 0:02:09]} 38. Bc3 {[%emt 0:00:04]} Qb6 {[%emt 0:00:34]} 39. Bb2 {[%emt 0:01:51]} Qb4 {[%emt 0:07:52]} 40. Qf2 {[%emt 0:00:00]} Ra2 {[%emt 0:00:00]} 41. Rc8+ {[%emt 0:12:03]} Kf7 {[%emt 0:01:47]} 42. Qh4 {[%emt 0:00:08]} Qxe1+ {[%emt 0:01:24]} 43. Qxe1 {[%emt 0:00:05]} Rxb2 {[%emt 0:00:14]} 44. Qc1 $11 {[%emt 0:11:03]} Re2 {[%emt 0:20:35]} 45. Rc7+ {[%emt 0:00:45]} Rxc7 {[%emt 0:00:07]} 46. Qxc7+ {[%emt 0:00:01]} Kg8 {[%emt 0:00:18]} 47. Qd8+ {[%emt 0:00:36]} Kg7 {[%emt 0:01:03]} 48. Qe7+ {[%emt 0:00:18]} Bf7 {[%emt 0:00:10]} 49. Qg5+ {[%emt 0:00:06]} Bg6 {[%emt 0:00:04]} 1/2-1/2

[Event "European School-ch 2019"]
[Site "Mamaia"]
[Date "2019.06.04"]
[Round "5.10"]
[White "Dharmasena, Gavith"]
[Black "Ochedzan, Tymon"]
[Result "0-1"]
[ECO "B54"]
[WhiteElo "1560"]
[BlackElo "2064"]
[Annotator "NA RC"]
[PlyCount "94"]
[EventDate "2019.05.31"]
[EventType "swiss"]
[EventCountry "ROU"]
[SourceTitle "playchess.com"]
[Source "ChessBase"]
[SourceQuality "1"]
[TimeControl "40/5400+30:1800+30"]

1. e4 {[%emt 0:00:00]} c5 {[%emt 0:00:00]} 2. Nf3 {[%emt 0:00:00]} d6 {[%emt 0:00:00]} 3. d4 {[%emt 0:00:00]} cxd4 {[%emt 0:00:00]} 4. Nxd4 {[%emt 0:00:00]} Nf6 {[%emt 0:00:00]} 5. f3 {[%emt 0:00:00]} e5 {[%emt 0:03:46]} 6. Nb3 {[%emt 0:00:09]} Be6 {[%emt 0:02:36]} 7. c4 {[%emt 0:01:08]} a5 {[%emt 0:07:05]} 8. Be3 {[%emt 0:04:43]} a4 {[%emt 0:04:27]} 9. N3d2 {[%emt 0:00:16]} Qa5 {[%emt 0:01:48]} 10. Nc3 {[%emt 0:01:29]} Be7 {[%emt 0:00:51]} 11. Be2 {[%emt 0:00:31]} Bd8 {[%emt 0:10:42]} 12. O-O {[%emt 0:04:36]} Bb6 {[%emt 0:01:11]} 13. Bxb6 {[%emt 0:02:28]} Qxb6+ {[%emt 0:00:30]} 14. Kh1 {[%emt 0:00:08]} Bd7 {[%emt 0:10:11]} 15. b3 {[%emt 0:01:49]} a3 {[%emt 0:03:13]} 16. Nd5 {[%emt 0:01:41]} Nxd5 {[%emt 0:03:06]} 17. cxd5 {[%emt 0:02:08]} Qb4 {[%emt 0:04:44]} 18. Nc4 {[%emt 0:04:11]} b5 {[%emt 0:05:43]} 19. Nb6 {[%emt 0:00:47]} Ra7 {[%emt 0:02:22]} 20. Nxd7 {[%emt 0:00:14]} Nxd7 {[%emt 0:00:31]} 21. Qd3 {[%emt 0:01:10]} Rb7 {[%emt 0:01:25]} 22. Rfc1 {[%emt 0:00:30]} Nc5 {[%emt 0:00:51]} 23. Qc3 {[%emt 0:00:49]} Qxc3 {[%emt 0:00:38]} 24. Rxc3 {[%emt 0:00:09]} b4 {[%emt 0:00:27]} 25. Rc4 {[%emt 0:00:21]} Ke7 {[%emt 0:01:00]} 26. Rf1 {[%emt 0:01:03]} Ra8 {[%emt 0:05:44]} 27. g3 {[%emt 0:01:33]} f6 {[%emt 0:07:35]} 28. f4 {[%emt 0:02:27]} g6 {[%emt 0:03:11]} 29. fxe5 {[%emt 0:01:32]} fxe5 {[%emt 0:00:04]} 30. h4 {[%emt 0:00:29]} h6 {[%emt 0:01:43]} 31. g4 {[%emt 0:01:29]} Rf8 {[%emt 0:01:37]} 32. Rxf8 {[%emt 0:00:17]} Kxf8 {[%emt 0:00:07]} 33. Kg2 {[%emt 0:01:09]} Ke7 {[%emt 0:02:46]} 34. Kf3 {[%emt 0:00:49]} Kf6 {[%emt 0:00:18]} 35. Ke3 {[%emt 0:00:14]} g5 {[%emt 0:00:05]} 36. h5 {[%emt 0:00:23]} Ke7 {[%emt 0:01:07]} 37. Kf3 {[%emt 0:00:32]} Kd8 {[%emt 0:02:08]} 38. Ke3 {[%emt 0:00:30]} Nxb3 {[%emt 0:10:04]} 39. axb3 {[%emt 0:03:54]} Rc7 {[%emt 0:01:23]} 40. Rxb4 {[%emt 0:00:00]} Ra7 {[%emt 0:00:00]} 41. Rc4 {[%emt 0:02:01]} a2 {[%emt 0:01:28]} 42. Rc1 {[%emt 0:00:06]} a1=Q {[%emt 0:00:26]} 43. Rxa1 {[%emt 0:00:12]} Rxa1 {[%emt 0:00:02]} 44. b4 {[%emt 0:00:50]} Kc7 {[%emt 0:00:33]} 45. b5 {[%emt 0:04:16]} Kb6 {[%emt 0:00:29]} 46. Kd2 {[%emt 0:08:17]} Ra2+ {[%emt 0:00:14]} 47. Kd1 {[%emt 0:00:09]} Rxe2 {[%emt 0:01:34]} 0-1

[Event "European School-ch 2019"]
[Site "Mamaia"]
[Date "2019.06.04"]
[Round "5.11"]
[White "Dotsenko, Makar"]
[Black "Balan, Bogdan"]
[Result "0-1"]
[ECO "A61"]
[WhiteElo "1610"]
[BlackElo "2027"]
[Annotator "NA RC"]
[PlyCount "66"]
[EventDate "2019.05.31"]
[EventType "swiss"]
[EventCountry "ROU"]
[SourceTitle "playchess.com"]
[Source "ChessBase"]
[SourceQuality "1"]
[TimeControl "40/5400+30:1800+30"]

1. d4 {[%emt 0:00:00]} Nf6 {[%emt 0:00:00]} 2. c4 {[%emt 0:00:00]} e6 {[%emt 0:00:00]} 3. Nf3 {[%emt 0:00:00]} c5 {[%emt 0:00:00]} 4. d5 {[%emt 0:00:42]} d6 {[%emt 0:00:00]} 5. Nc3 {[%emt 0:01:20]} exd5 {[%emt 0:00:00]} 6. cxd5 {[%emt 0:01:03]} g6 {[%emt 0:00:19]} 7. e4 {[%emt 0:01:17]} Bg7 {[%emt 0:00:12]} 8. Bf4 {[%emt 0:03:45]} O-O {[%emt 0:02:14]} 9. Bd3 {[%emt 0:03:58]} Nh5 {[%emt 0:04:40]} 10. Bg5 {[%emt 0:02:33]} Bf6 {[%emt 0:05:01]} 11. Bxf6 {[%emt 0:03:06]} Qxf6 {[%emt 0:00:58]} 12. O-O {[%emt 0:10:56]} Nf4 {[%emt 0:03:03]} 13. Re1 {[%emt 0:07:32]} Bg4 {[%emt 0:05:05]} 14. h3 {[%emt 0:05:42]} Nxh3+ {[%emt 0:00:35]} 15. Kf1 {[%emt 0:01:58]} Bxf3 {[%emt 0:04:03]} 16. Qxf3 {[%emt 0:00:41]} Qxf3 {[%emt 0:00:17]} 17. gxf3 {[%emt 0:00:02]} Nf4 {[%emt 0:00:25]} 18. Bc2 {[%emt 0:00:36]} a6 {[%emt 0:00:57]} 19. a4 {[%emt 0:00:29]} Nd7 {[%emt 0:01:11]} 20. Ne2 {[%emt 0:01:49]} Nxe2 {[%emt 0:00:23]} 21. Rxe2 {[%emt 0:00:38]} b5 {[%emt 0:01:38]} 22. f4 {[%emt 0:02:21]} f6 {[%emt 0:00:56]} 23. Kg2 {[%emt 0:03:06]} c4 {[%emt 0:01:27]} 24. Rae1 {[%emt 0:00:44]} Rfe8 {[%emt 0:03:49]} 25. e5 {[%emt 0:02:48]} fxe5 {[%emt 0:01:08]} 26. fxe5 {[%emt 0:00:03]} Rxe5 {[%emt 0:02:01]} 27. Rxe5 {[%emt 0:00:03]} Nxe5 {[%emt 0:00:25]} 28. f4 {[%emt 0:00:48]} Nd3 {[%emt 0:03:47]} 29. Bxd3 {[%emt 0:00:11]} cxd3 {[%emt 0:00:01]} 30. Rd1 {[%emt 0:02:25]} bxa4 {[%emt 0:00:21]} 31. Rxd3 {[%emt 0:05:11]} Rb8 {[%emt 0:00:20]} 32. Rd2 {[%emt 0:05:02]} Rb3 {[%emt 0:00:20]} 33. Kf2 {[%emt 0:02:32]} a3 0-1